fUSD/lending_fUSD_20250209
["ID","MTS","AMOUNT","RATE_DAILY","PERIOD"]
[352482374,1739134273910,-4690.65,0.000169,31]
[352482375,1739134273919,-4690.65,0.000169,31]
[352482376,1739134273928,-4690.65,0.000169,31]
[352482377,1739134273938,-4690.65,0.000169,31]
[352482378,1739134273947,-4690.65,0.000169,31]
[352482379,1739134273957,-4690.65,0.000169,31]
[352482380,1739134273971,-4690.65,0.000169,31]
[352482381,1739134273982,-4690.65,0.000169,31]
[352482382,1739134273992,-4690.65,0.000169,31]
[352482383,1739134274001,-4690.65,0.000169,31]
[352482384,1739134274012,-4690.65,0.000169,31]
[352482385,1739134274022,-4690.65,0.000169,31]
[352482386,1739134274031,-4690.65,0.000169,31]
[352482387,1739134274042,-2000.0,0.00016903,4]
[352482388,1739134274052,-150.0,0.00016916,2]
[352482389,1739134274062,-150.0,0.0001692,2]
[352482390,1739134274071,-150.0,0.00016933,2]
[352482391,1739134274081,-150.0,0.00016935,2]
[352482392,1739134274090,-150.0,0.0001695,2]
[352482393,1739134274100,-150.0,0.00016953,2]
[352482394,1739134274109,-150.0,0.00016956,2]
[352482395,1739134274119,-825.11,0.00016964,2]
[352482396,1739134274128,-250.0,0.0001697,2]
[352482397,1739134274138,-150.0,0.00016971,2]
[352482398,1739134274147,-150.0,0.0001699,2]
[352482399,1739134274156,-150.0,0.00016992,2]
[352482400,1739134274166,-150.0,0.00017,2]
[352482401,1739134274175,-900.0,0.00017,18]
[352482402,1739134274185,-650.0,0.00017,2]
[352482403,1739134274194,-150.0,0.00017008,2]
[352482404,1739134274203,-150.0,0.00017027,2]
[352482405,1739134274212,-150.0,0.00017028,2]
[352482406,1739134274222,-175.75074083,0.00017043,2]
[352482407,1739134274233,-1983.04,0.00017043,2]
[352482408,1739134274242,-150.0,0.00017045,2]
[352482409,1739134274252,-1000.0,0.00017048,2]
[352482410,1739134274261,-150.0,0.00017063,2]
[352482411,1739134274270,-150.0,0.00017064,2]
[352482412,1739134274279,-150.0,0.00017067,2]
[352482413,1739134274288,-150.0,0.00017082,2]
[352482414,1739134274298,-280.26982,0.00017088,7]
[352482415,1739134274308,-150.0,0.000171,2]
[352482416,1739134274317,-150.0,0.000171,2]
[352482417,1739134274327,-150.0,0.000171,2]
[352482418,1739134274337,-150.0,0.00017118,2]
[352482419,1739134274346,-575.56,0.00017123,2]
[352482420,1739134274356,-250.0,0.00017123,2]
[352482421,1739134274366,-150.0,0.00017133,2]
[352482422,1739134274375,-150.0,0.00017136,2]
[352482423,1739134274385,-150.0,0.00017137,2]
[352482424,1739134274394,-150.0,0.00017155,2]
[352482425,1739134274403,-150.0,0.00017172,2]
[352482426,1739134274412,-150.0,0.00017173,2]
[352482427,1739134274422,-150.0,0.00017192,2]
[352482428,1739134274431,-150.0,0.000172,2]
[352482429,1739134274442,-150.0,0.00017208,2]
[352482430,1739134274451,-150.0,0.0001721,2]
[352482431,1739134274461,-150.0,0.00017229,2]
[352482432,1739134274471,-150.0,0.00017244,2]
[352482433,1739134274482,-150.0,0.00017247,2]
[352482434,1739134274492,-150.0,0.0001725,2]
[352482435,1739134274503,-1619.83,0.0001726,4]
[352482436,1739134274513,-150.0,0.00017265,2]
[352482437,1739134274523,-150.0,0.00017267,2]
[352482438,1739134274532,-150.0,0.0001728,2]
[352482439,1739134274542,-150.0,0.00017284,2]
[352482440,1739134274552,-280.26982,0.00017288,7]
[352482441,1739134274563,-150.0,0.00017302,2]
[352482442,1739134274572,-150.0,0.00017316,2]
[352482443,1739134274582,-150.0,0.0001732,2]
[352482444,1739134274592,-150.0,0.00017333,2]
[352482445,1739134274602,-150.0,0.00017339,2]
[352482446,1739134274612,-150.0,0.00017352,2]
[352482447,1739134274622,-150.0,0.00017357,2]
[352482448,1739134274632,-150.0,0.00017376,2]
[352482449,1739134274643,-1047.1035494,0.00017387,2]
[352482450,1739134274652,-150.0,0.00017388,2]
[352482451,1739134274662,-150.0,0.00017394,2]
[352482452,1739134274672,-150.0,0.000174,2]
[352482453,1739134274681,-150.0,0.000174,2]
[352482454,1739134274691,-150.0,0.00017412,2]
[352482455,1739134274700,-150.0,0.00017424,2]
[352482456,1739134274710,-150.0,0.00017431,2]
[352482457,1739134274720,-152.0,0.00017443,4]
[352482458,1739134274730,-150.0,0.00017449,2]
[352482459,1739134274740,-150.0,0.0001746,2]
[352482460,1739134274750,-150.0,0.00017467,2]
[352482461,1739134274760,-150.0,0.00017467,2]
[352482462,1739134274769,-150.0,0.00017486,2]
[352482463,1739134274779,-280.26982,0.00017488,7]
[352482464,1739134274789,-150.0,0.00017496,2]
[352482465,1739134274798,-150.0,0.00017504,2]
[352482466,1739134274809,-24642.18463379,0.00017522,2]
[352482467,1739134274818,-150.0,0.00017522,2]
[352482468,1739134274828,-150.0,0.00017532,2]
[352482469,1739134274838,-150.0,0.00017533,2]
[352482470,1739134274847,-150.0,0.00017541,2]
[352482471,1739134274856,-150.0,0.0001755,2]
[352482472,1739134274866,-150.0,0.00017559,2]
[352482473,1739134274876,-150.0,0.00017568,2]
[352482474,1739134274885,-150.0,0.00017578,2]
[352482475,1739134274895,-9100.21227977,0.00017581,2]
[352482476,1739134274904,-9100.21227975,0.00017581,2]
[352482477,1739134274915,-9100.21227975,0.00017581,2]
[352482478,1739134274924,-150.0,0.00017596,2]
[352482479,1739134274933,-150.0,0.000176,2]
[352482480,1739134274943,-150.0,0.00017604,2]
[352482481,1739134274953,-2000.0,0.00017608,2]
[352482482,1739134274966,-2100.0,0.00017608,2]
[352482483,1739134274975,-800.0,0.00017608,2]
[352482484,1739134274986,-150.0,0.00017614,2]
[352482485,1739134274996,-150.0,0.00017633,2]
[352482486,1739134275006,-150.0,0.0001764,2]
[352482487,1739134275016,-150.0,0.00017651,2]
[352482488,1739134275026,-150.0,0.00017667,2]
[352482489,1739134275035,-150.0,0.00017669,2]
[352482490,1739134275045,-150.0,0.00017676,2]
[352482491,1739134275054,-150.0,0.00017688,2]
[352482492,1739134275063,-280.26982,0.00017688,7]
[352482493,1739134275072,-150.0,0.000177,2]
[352482494,1739134275082,-4843.41,0.000177,2]
[352482495,1739134275091,-150.0,0.00017706,2]
[352482496,1739134275101,-150.0,0.00017712,2]
[352482497,1739134275110,-150.0,0.00017724,2]
[352482498,1739134275119,-150.0,0.00017733,2]
[352482499,1739134275130,-150.0,0.00017743,2]
[352482500,1739134275139,-150.0,0.00017748,2]
[352482501,1739134275148,-150.0,0.00017761,2]
[352482502,1739134275157,-150.0,0.0001778,2]
[352482503,1739134275167,-150.0,0.00017784,2]
[352482504,1739134275177,-150.0,0.00017798,2]
[352482505,1739134275187,-150.0,0.000178,2]
[352482506,1739134275197,-1107.82,0.00017808,4]
[352482507,1739134275207,-350.0,0.00017808,2]
[352482508,1739134275217,-150.0,0.00017816,2]
[352482509,1739134275226,-150.0,0.0001782,2]
[352482510,1739134275238,-150.0,0.00017835,2]
[352482511,1739134275247,-150.0,0.0001785,2]
[352482512,1739134275256,-150.0,0.00017853,2]
[352482513,1739134275266,-150.0,0.00017856,2]
[352482514,1739134275275,-150.0,0.00017867,2]
[352482515,1739134275284,-150.0,0.00017871,2]
[352482516,1739134275293,-280.26982,0.00017888,7]
[352482517,1739134275303,-150.0,0.0001789,2]
[352482518,1739134275312,-150.0,0.00017892,2]
[352482519,1739134275321,-150.0,0.00017908,2]
[352482520,1739134275330,-150.0,0.00017927,2]
[352482521,1739134275340,-150.0,0.00017928,2]
[352482522,1739134275349,-150.0,0.00017933,2]
[352482523,1739134275359,-150.0,0.00017945,2]
[352482524,1739134275368,-150.0,0.00017963,2]
[352482525,1739134275377,-150.0,0.00017964,2]
[352482526,1739134275387,-150.0,0.00017982,2]
[352482527,1739134275397,-500.0,0.00017999,2]
[352482528,1739134275406,-230.49549485,0.00018,2]
[352482529,1739134275416,-214.42735566,0.00018,2]
[352482530,1739134275427,-227.57213613,0.00018,2]
[352482531,1739134275437,-150.83263068,0.00018,2]
[352482532,1739134275447,-76400.0,0.00018,30]
[352482533,1739134275456,-23683.14249102,0.00018,2]
[352482534,1739134275466,-1500.0,0.0001805,2]
[352482535,1739134275475,-1107.82,0.00018082,4]
[352482536,1739134275488,-200.0,0.00018082,2]
[352482537,1739134275498,-2000.0,0.00018082,2]
[352482538,1739134275507,-2500.0,0.00018082,2]
[352482539,1739134275516,-280.26982,0.00018088,7]
[352482540,1739134275526,-152.0,0.00018191,5]
[352482541,1739134275536,-384.5468195,0.00018252,2]
[352482542,1739134275546,-215.0,0.0001827,2]
[352482543,1739134275555,-215.0,0.0001827,2]
[352482544,1739134275565,-280.26982,0.00018288,7]
[352482545,1739134275575,-152.60632031,0.000183,2]
[352482546,1739134275584,-814.02104815,0.00018324,2]
[352482547,1739134275594,-1107.82,0.00018356,4]
[352482548,1739134275603,-82533.52,0.00018356,2]
[352482549,1739134275613,-384.5468195,0.00018471,2]
[352482550,1739134275623,-280.26982,0.00018488,7]
[352482551,1739134275632,-363.33138531,0.00018493,2]
[352482552,1739134275642,-4843.41,0.000186,2]
[352482553,1739134275651,-24642.18463379,0.00018611,2]
[352482554,1739134275661,-1107.82,0.0001863,4]
[352482555,1739134275670,-384.5468195,0.00018655,2]
[352482556,1739134275679,-280.26982,0.00018688,7]
[352482557,1739134275689,-2000.0,0.00018751,2]
[352482558,1739134275699,-215.0,0.0001878,2]
[352482559,1739134275708,-215.0,0.0001878,2]
[352482560,1739134275716,-215.0,0.0001878,2]
[352482561,1739134275725,-39518.34837743,0.00018843,2]
[352482562,1739134275734,-280.26982,0.00018888,7]
[352482563,1739134275743,-1107.82,0.00018904,4]
[352482564,1739134275752,-152.0,0.00018939,6]
[352482565,1739134275762,-150.0,0.00018964,2]
[352482566,1739134275772,-150.0,0.0001898,2]
[352482567,1739134275781,-150.0,0.00018981,2]
[352482568,1739134275791,-900.0,0.00019,20]
[352482569,1739134275801,-700.0,0.00019,2]
[352482570,1739134275810,-439.73,0.0001901,2]
[352482571,1739134275820,-879.14,0.0001901,2]
[352482572,1739134275829,-268.83,0.0001901,2]
[352482573,1739134275839,-384.5468196,0.00019013,2]
[352482574,1739134275848,-302.34,0.00019021,2]
[352482575,1739134275858,-280.26982,0.00019088,7]
[352482576,1739134275868,-150.0,0.00019121,2]
[352482577,1739134275878,-150.0,0.00019121,2]
[352482578,1739134275888,-150.0,0.00019132,2]
[352482579,1739134275897,-150.0,0.00019137,2]
[352482580,1739134275907,-150.0,0.00019149,2]
[352482581,1739134275917,-825.11,0.0001915,2]
[352482582,1739134275926,-11912.11,0.00019151,2]
[352482583,1739134275936,-150.0,0.00019152,2]
[352482584,1739134275946,-1107.82,0.00019178,4]
[352482585,1739134275956,-3232.52,0.00019178,2]
[352482586,1739134275969,-150.0,0.00019178,2]
[352482587,1739134275979,-150.0,0.00019182,2]
[352482588,1739134275990,-2088.0,0.00019225,2]
[352482589,1739134276000,-150.0,0.0001924,2]
[352482590,1739134276010,-783.07,0.00019242,30]
[352482591,1739134276019,-150.0,0.00019267,2]
[352482592,1739134276029,-280.26982,0.00019288,7]
[352482593,1739134276038,-215.0,0.0001929,2]
[352482594,1739134276049,-215.0,0.0001929,2]
[352482595,1739134276058,-216.0,0.0001929,2]
[352482596,1739134276068,-215.0,0.0001929,2]
[352482597,1739134276077,-215.0,0.0001929,2]
[352482598,1739134276087,-94832.31462495,0.000193,2]
[352482599,1739134276097,-2678.79241,0.000193,2]
[352482600,1739134276107,-47200.0,0.00019316,2]
[352482601,1739134276116,-500.0,0.0001933,2]
[352482602,1739134276126,-500.0,0.0001933,2]
[352482603,1739134276137,-500.0,0.0001933,2]
[352482604,1739134276265,-276.0,0.0001933,2]
[352482605,1739134276275,-200.0,0.0001933,2]
[352482606,1739134276285,-200.0,0.0001933,2]
[352482607,1739134276295,-200.0,0.0001933,2]
[352482608,1739134276305,-200.0,0.0001933,2]
[352482609,1739134276314,-200.0,0.0001933,2]
[352482610,1739134276323,-200.0,0.0001933,2]
[352482611,1739134276333,-200.0,0.0001933,2]
[352482612,1739134276343,-200.0,0.0001933,2]
[352482613,1739134276352,-200.0,0.0001933,2]
[352482614,1739134276362,-200.0,0.0001933,2]
[352482615,1739134276371,-200.0,0.0001933,2]
[352482616,1739134276381,-200.0,0.0001933,2]
[352482617,1739134276390,-200.0,0.0001933,2]
[352482618,1739134276400,-200.0,0.0001933,2]
[352482619,1739134276410,-200.0,0.0001933,2]
[352482620,1739134276419,-200.0,0.0001933,2]
[352482621,1739134276430,-200.0,0.0001933,2]
[352482622,1739134276439,-200.0,0.0001933,2]
[352482623,1739134276449,-200.0,0.0001933,2]
[352482624,1739134276458,-200.0,0.0001933,2]
[352482625,1739134276468,-200.0,0.0001933,2]
[352482626,1739134276477,-200.0,0.0001933,2]
[352482627,1739134276488,-200.0,0.0001933,2]
[352482628,1739134276498,-200.0,0.0001933,2]
[352482629,1739134276508,-208.0,0.0001933,2]
[352482630,1739134276517,-168.02,0.00019334,2]
[352482631,1739134276527,-245.39,0.00019334,2]
[352482632,1739134276537,-539.0,0.00019375,2]
[352482633,1739134276546,-161.90811772,0.00019387,2]
[352482634,1739134276556,-150.0,0.00019395,2]
[352482635,1739134276565,-23406.55948542,0.00019401,2]
[352482636,1739134276575,-1785.3363076,0.00019404,2]
[352482637,1739134276586,-2000.0,0.0001942,2]
[352482638,1739134276596,-150.0,0.00019423,2]
[352482639,1739134276605,-2088.0,0.00019424,2]
[352482640,1739134276615,-150.0,0.00019428,2]
[352482641,1739134276624,-150.0,0.00019448,2]
[352482642,1739134276634,-1107.82,0.00019452,4]
[352482643,1739134276644,-1619.83,0.00019452,6]
[352482644,1739134276653,-150.0,0.00019452,2]
[352482645,1739134276663,-150.0,0.00019466,2]
[352482646,1739134276673,-150.0,0.00019469,2]
[352482647,1739134276682,-150.0,0.00019471,2]
[352482648,1739134276691,-1999.0,0.00019479,2]
[352482649,1739134276701,-1999.0,0.00019479,2]
[352482650,1739134276710,-1999.0,0.00019479,2]
[352482651,1739134276719,-1999.0,0.00019479,2]
[352482652,1739134276729,-1999.0,0.00019479,2]
[352482653,1739134276739,-1999.0,0.00019479,2]
[352482654,1739134276748,-1999.0,0.00019479,2]
[352482655,1739134276758,-1999.0,0.00019479,2]
[352482656,1739134276767,-1999.0,0.00019479,2]
[352482657,1739134276775,-1999.0,0.00019479,2]
[352482658,1739134276784,-1999.0,0.00019479,2]
[352482659,1739134276793,-1999.0,0.00019479,2]
[352482660,1739134276802,-1999.0,0.00019479,2]
[352482661,1739134276813,-1999.0,0.00019479,2]
[352482662,1739134276822,-1999.0,0.00019479,2]
[352482663,1739134276831,-1999.0,0.00019479,2]
[352482664,1739134276840,-1999.0,0.00019479,2]
[352482665,1739134276849,-1999.0,0.00019479,2]
[352482666,1739134276858,-1999.0,0.00019479,2]
[352482667,1739134276867,-1999.0,0.00019479,2]
[352482668,1739134276876,-1625.8,0.00019479,2]
[352482669,1739134276885,-150.0,0.00019482,2]
[352482670,1739134276894,-280.26982,0.00019488,7]
[352482671,1739134276903,-205.58,0.00019492,2]
[352482672,1739134276913,-4843.41,0.000195,2]
[352482673,1739134276922,-2500.0,0.000195,7]
[352482674,1739134276932,-181.93074835,0.00019503,2]
[352482675,1739134276941,-1448.0,0.00019533,2]
[352482676,1739134276950,-161.90811772,0.00019544,2]
[352482677,1739134276962,-150.0,0.00019558,2]
[352482678,1739134276972,-2565.76843538,0.00019592,2]
[352482679,1739134276983,-500.0,0.000196,7]
[352482680,1739134276993,-19952.82393801,0.000196,2]
[352482681,1739134277003,-759.35078972,0.000196,3]
[352482682,1739134277012,-3290.60084615,0.0001961,2]
[352482683,1739134277021,-2088.0,0.00019622,2]
[352482684,1739134277032,-150.0,0.00019623,2]
[352482685,1739134277042,-150.0,0.00019626,2]
[352482686,1739134277052,-202.0,0.0001963,2]
[352482687,1739134277061,-2000.0,0.00019641,2]
[352482688,1739134277070,-500.0,0.00019641,2]
[352482689,1739134277079,-200.0,0.00019641,2]
[352482690,1739134277088,-500.0,0.00019641,2]
[352482691,1739134277098,-500.0,0.00019641,2]
[352482692,1739134277107,-500.0,0.00019641,2]
[352482693,1739134277116,-500.0,0.00019641,2]
[352482694,1739134277126,-500.0,0.00019642,2]
[352482695,1739134277136,-2000.0,0.00019642,2]
[352482696,1739134277146,-500.0,0.00019642,2]
[352482697,1739134277155,-500.0,0.00019642,2]
[352482698,1739134277164,-500.0,0.00019642,2]
[352482699,1739134277173,-500.0,0.00019642,2]
[352482700,1739134277182,-500.0,0.00019642,2]
[352482701,1739134277191,-500.0,0.00019642,2]
[352482702,1739134277200,-500.0,0.00019642,2]
[352482703,1739134277210,-200.0,0.00019642,2]
[352482704,1739134277219,-150.0,0.00019653,2]
[352482705,1739134277229,-150.0,0.00019677,2]
[352482706,1739134277239,-150.0,0.00019683,2]
[352482707,1739134277248,-152.0,0.00019686,3]
[352482708,1739134277257,-152.0,0.00019686,7]
[352482709,1739134277267,-708.05574602,0.000197,2]
[352482710,1739134277277,-197548.94256377,0.000197,2]
[352482711,1739134277286,-161.90811772,0.000197,2]
[352482712,1739134277295,-1047.1035494,0.000197,2]
[352482713,1739134277305,-500.0,0.000197,7]
[352482714,1739134277314,-152.60632031,0.000197,2]
[352482715,1739134277324,-1226.39621548,0.000197,2]
[352482716,1739134277334,-1226.39621548,0.000197,2]
[352482717,1739134277343,-1226.39621548,0.000197,2]
[352482718,1739134277352,-1226.39621548,0.000197,2]
[352482719,1739134277363,-1144.13866021,0.000197,2]
[352482720,1739134277372,-1226.39621548,0.000197,2]
[352482721,1739134277382,-1226.39621548,0.000197,2]
[352482722,1739134277392,-1226.39621548,0.000197,2]
[352482723,1739134277401,-1226.39621548,0.000197,2]
[352482724,1739134277412,-1226.39621548,0.000197,2]
[352482725,1739134277423,-1226.39621548,0.000197,2]
[352482726,1739134277433,-1226.39621548,0.000197,2]
[352482727,1739134277443,-1226.39621548,0.000197,2]
[352482728,1739134277453,-1226.39621548,0.000197,2]
[352482729,1739134277462,-1226.39621548,0.000197,2]
[352482730,1739134277472,-1226.39621548,0.000197,2]
[352482731,1739134277481,-1226.39621548,0.000197,2]
[352482732,1739134277491,-1226.39621548,0.000197,2]
[352482733,1739134277500,-1226.39621548,0.000197,2]
[352482734,1739134277509,-1226.39621548,0.000197,2]
[352482735,1739134277518,-1226.39,0.000197,2]
[352482736,1739134277528,-24642.18463379,0.000197,2]
[352482737,1739134277538,-1280.00066137,0.000197,2]
[352482738,1739134277548,-1280.00066137,0.000197,2]
[352482739,1739134277557,-1280.00066137,0.000197,2]
[352482740,1739134277567,-1280.00066137,0.000197,2]
[352482741,1739134277577,-1280.00066137,0.000197,2]
[352482742,1739134277586,-1280.00066137,0.000197,2]
[352482743,1739134277596,-1280.00066137,0.000197,2]
[352482744,1739134277607,-1280.00066137,0.000197,2]
[352482745,1739134277616,-1280.00066137,0.000197,2]
[352482746,1739134277626,-1280.00066137,0.000197,2]
[352482747,1739134277636,-1280.00066137,0.000197,2]
[352482748,1739134277645,-1280.00066137,0.000197,2]
[352482749,1739134277654,-1280.00066137,0.000197,2]
[352482750,1739134277663,-1280.00066137,0.000197,2]
[352482751,1739134277672,-1280.00066137,0.000197,2]
[352482752,1739134277682,-1280.00066137,0.000197,2]
[352482753,1739134277692,-1280.00066137,0.000197,2]
[352482754,1739134277701,-1280.00066137,0.000197,2]
[352482755,1739134277710,-1280.00066137,0.000197,2]
[352482756,1739134277719,-1280.0,0.000197,2]
[352482757,1739134277729,-1604.76847699,0.000197,2]
[352482758,1739134277739,-1604.76847699,0.000197,2]
[352482759,1739134277749,-1604.76847699,0.000197,2]
[352482760,1739134277758,-1604.76847699,0.000197,2]
[352482761,1739134277767,-1604.76847699,0.000197,2]
[352482762,1739134277776,-1604.76847699,0.000197,2]
[352482763,1739134277786,-1604.76847699,0.000197,2]
[352482764,1739134277795,-1604.76847699,0.000197,2]
[352482765,1739134277804,-1604.76847699,0.000197,2]
[352482766,1739134277814,-1604.76847699,0.000197,2]
[352482767,1739134277822,-1604.76847699,0.000197,2]
[352482768,1739134277832,-1604.76847699,0.000197,2]
[352482769,1739134277842,-1604.76847699,0.000197,2]
[352482770,1739134277851,-1604.76847699,0.000197,2]
[352482771,1739134277862,-1604.76847699,0.000197,2]
[352482772,1739134277871,-1604.76847699,0.000197,2]
[352482773,1739134277882,-1604.76847699,0.000197,2]
[352482774,1739134277891,-1604.76847699,0.000197,2]
[352482775,1739134277900,-1604.76847699,0.000197,2]
[352482776,1739134277910,-1604.76,0.000197,2]
[352482777,1739134277920,-150.0,0.00019707,2]
[352482778,1739134277930,-500.0,0.00019718,2]
[352482779,1739134277940,-500.0,0.00019719,3]
[352482780,1739134277951,-500.0,0.00019719,3]
[352482781,1739134277965,-501.50673564,0.00019719,3]
[352482782,1739134277974,-500.0,0.00019719,3]
[352482783,1739134277984,-500.0,0.00019719,3]
[352482784,1739134277993,-500.0,0.00019719,3]
[352482785,1739134278002,-500.0,0.00019719,3]
[352482786,1739134278011,-503.17258358,0.00019719,3]
[352482787,1739134278021,-497.97572583,0.00019719,3]
[352482788,1739134278030,-642.66286372,0.00019719,3]
[352482789,1739134278040,-500.0,0.00019719,3]
[352482790,1739134278049,-500.0,0.00019719,3]
[352482791,1739134278058,-500.0,0.00019719,3]
[352482792,1739134278067,-501.45004974,0.00019719,3]
[352482793,1739134278076,-502.94955587,0.00019719,3]
[352482794,1739134278086,-500.0,0.00019719,3]
[352482795,1739134278095,-372.87309936,0.00019719,3]
[352482796,1739134278104,-500.0,0.00019719,3]
[352482797,1739134278114,-500.0,0.00019719,3]
[352482798,1739134278123,-500.0,0.00019719,3]
[352482799,1739134278132,-500.69323942,0.00019719,3]
[352482800,1739134278142,-1107.82,0.00019726,4]
[352482801,1739134278151,-150.0,0.00019736,2]
[352482802,1739134278160,-19952.82393801,0.0001975,2]
[352482803,1739134278170,-759.3507897,0.0001975,3]
[352482804,1739134278179,-150.0,0.00019751,2]
[352482805,1739134278188,-250.0,0.0001977,2]
[352482806,1739134278197,-300.0,0.0001977,2]
[352482807,1739134278207,-214.0,0.0001979,2]
[352482808,1739134278216,-216.0,0.0001979,2]
[352482809,1739134278225,-215.0,0.0001979,2]
[352482810,1739134278235,-215.0,0.0001979,2]
[352482811,1739134278244,-216.0,0.0001979,2]
[352482812,1739134278253,-215.0,0.0001979,2]
[352482813,1739134278262,-215.0,0.0001979,2]
[352482814,1739134278271,-214.0,0.0001979,2]
[352482815,1739134278281,-214.0,0.0001979,2]
[352482816,1739134278291,-892.8508573,0.00019791,2]
[352482817,1739134278301,-1309.217538,0.00019791,2]
[352482818,1739134278310,-491.90145558,0.00019791,2]
[352482819,1739134278320,-1139.9323012,0.00019791,2]
[352482820,1739134278329,-150.0,0.00019794,2]
[352482821,1739134278338,-171.29,0.00019799,2]
[352482822,1739134278349,-250.84553967,0.00019799,3]
[352482823,1739134278359,-300.0,0.00019799,2]
[352482824,1739134278368,-300.0,0.00019799,2]
[352482825,1739134278380,-300.0,0.00019799,2]
[352482826,1739134278389,-300.0,0.00019799,2]
[352482827,1739134278398,-6998.04645933,0.000198,2]
[352482828,1739134278408,-817186.46952366,0.000198,2]
[352482829,1739134278417,-8271017.37376205,0.000198,2]
[352482830,1739134278541,-3423.34352742,0.000198,2]
[352482831,1739134278552,-150.0,0.000198,2]
[352482832,1739134278562,-150.0,0.000198,2]
[352482833,1739134278572,-150.0,0.000198,2]
[352482834,1739134278582,-2377.92185037,0.000198,2]
[352482835,1739134278591,-1086.775734,0.000198,2]
[352482836,1739134278600,-159.66849621,0.000198,2]
[352482837,1739134278610,-150.0,0.000198,2]
[352482838,1739134278619,-1651.92986185,0.000198,2]
[352482839,1739134278629,-363537.64330874,0.000198,2]
[352482840,1739134278638,-1906.0,0.000198,2]
[352482841,1739134278648,-828.2583,0.000198,2]
[352482842,1739134278657,-828.2583,0.000198,2]
[352482843,1739134278668,-500.0,0.000198,7]
[352482844,1739134278678,-581.6945,0.000198,2]
[352482845,1739134278687,-581.6945,0.000198,2]
[352482846,1739134278697,-2000.0,0.000198,2]
[352482847,1739134278706,-1144.13866021,0.000198,2]
[352482848,1739134278716,-2100.0,0.000198,2]
[352482849,1739134278726,-800.0,0.000198,2]
[352482850,1739134278736,-142132.36581383,0.000198,2]
[352482851,1739134278746,-154.17,0.000198,2]
[352482852,1739134278756,-154.17,0.000198,2]
[352482853,1739134278766,-154.17,0.000198,2]
[352482854,1739134278775,-154.17,0.000198,2]
[352482855,1739134278785,-154.17,0.000198,2]
[352482856,1739134278794,-154.20136501,0.000198,2]
[352482857,1739134278804,-4129.82672355,0.00019802,2]
[352482858,1739134278814,-4129.82672342,0.00019802,2]
[352482859,1739134278823,-1500.0,0.00019817,2]
[352482860,1739134278833,-2088.0,0.0001982,2]
[352482861,1739134278843,-744.80355592,0.0001982,2]
[352482862,1739134278852,-500.0,0.00019825,2]
[352482863,1739134278862,-150.0,0.00019848,2]
[352482864,1739134278872,-500.0,0.00019855,2]
[352482865,1739134278882,-500.0,0.00019862,2]
[352482866,1739134278892,-3004.77855651,0.0001987,2]
[352482867,1739134278902,-280.26982,0.00019888,7]
[352482868,1739134278912,-897.5,0.00019897,7]
[352482869,1739134278921,-300.0,0.00019899,2]
[352482870,1739134278931,-204256.03974345,0.000199,7]
[352482871,1739134278940,-4698.33770949,0.000199,3]
[352482872,1739134278949,-5193.10736241,0.000199,30]
[352482873,1739134278959,-814.02104815,0.000199,2]